bitfinex/quotes_BTCUSD_20220115
["timestamp","ask_amount","ask_price","bid_price","bid_amount"]
[1642264009785,0.55,43300.0,43299.0,0.24326149]
[1642264010031,0.55,43300.0,43296.0,0.45495643]
[1642264010427,0.55,43300.0,43296.0,0.44995643]
[1642264010628,0.55046212,43300.0,43296.0,0.44995643]
[1642264011531,0.14187745,43299.0,43296.0,0.44995643]
[1642264011729,0.00120169,43298.0,43293.0,0.00093461]
[1642264012529,0.04,43296.0,43293.0,0.00093461]
[1642264012731,0.04,43296.0,43294.0,0.39112473]
[1642264013133,0.55091403,43300.0,43295.0,2.53195229]
[1642264013333,0.55091403,43300.0,43296.0,0.50221387]
[1642264013531,0.55091403,43300.0,43296.0,0.54851387]
[1642264013981,0.55,43300.0,43296.0,0.54851387]
[1642264014179,0.55091413,43300.0,43296.0,0.54851387]
[1642264015077,0.55,43300.0,43296.0,0.54851387]
[1642264015279,0.55091413,43300.0,43297.0,0.15902014]
[1642264015478,0.55091413,43300.0,43297.0,0.0463]
[1642264015779,0.55091413,43300.0,43296.0,0.50221387]
[1642264016278,0.55,43300.0,43296.0,0.50221387]
[1642264016476,0.55091413,43300.0,43296.0,0.50221387]
[1642264016878,0.55091413,43300.0,43296.0,0.29984509]
[1642264017523,0.55,43300.0,43296.0,0.29984509]
[1642264017728,0.55091413,43300.0,43296.0,0.29984509]
[1642264017924,0.55091413,43300.0,43298.0,0.30115795]
[1642264018326,0.55091413,43300.0,43298.0,0.25645795]
[1642264018726,0.55,43300.0,43298.0,0.25645795]
[1642264018925,0.55,43300.0,43296.0,0.29984509]
[1642264019125,0.55,43300.0,43295.0,0.5917794]
[1642264019526,0.55,43300.0,43294.0,0.98290413]
[1642264019926,0.55,43300.0,43294.0,1.29053206]
[1642264020125,0.55091411,43300.0,43294.0,1.29053206]
[1642264022082,0.55091411,43300.0,43294.0,0.89940733]
[1642264022280,0.55,43300.0,43294.0,0.89940733]
[1642264022478,0.55091411,43300.0,43294.0,0.89940733]
[1642264022979,0.55091411,43300.0,43294.0,0.30762793]
[1642264023180,0.55091411,43300.0,43296.0,0.43954513]
[1642264023380,0.55091411,43300.0,43296.0,0.39484513]
[1642264023580,0.55,43300.0,43296.0,0.39484513]
[1642264023780,0.55091413,43300.0,43296.0,0.39484513]
[1642264024781,0.55,43300.0,43297.0,0.16065358]
[1642264025038,0.55,43300.0,43298.0,0.0463]
[1642264025039,0.55091413,43300.0,43298.0,0.0463]
[1642264025832,0.55091413,43300.0,43299.0,0.69655065]
[1642264026131,0.55,43300.0,43299.0,0.69655065]
[1642264026333,0.55,43300.0,43299.0,0.34150037]
[1642264026533,0.55,43300.0,43299.0,1.19150037]
[1642264026834,0.55,43300.0,43295.0,0.5917794]
[1642264027040,0.55,43300.0,43298.0,0.5917794]
[1642264027041,0.55120923,43300.0,43298.0,0.5917794]
[1642264027435,0.55183239,43300.0,43298.0,0.5917794]
[1642264027634,0.55183239,43300.0,43294.0,0.34631465]
[1642264027833,0.65183239,43300.0,43294.0,0.34631465]
[1642264028435,0.65120923,43300.0,43292.0,0.31749896]
[1642264028676,0.65183238,43300.0,43293.0,0.00083259]
[1642264028977,0.65183238,43300.0,43293.0,0.00090135]
[1642264029684,0.65183237,43300.0,43293.0,0.00090134]
[1642264030684,0.65120923,43300.0,43293.0,6.876e-05]
[1642264030880,0.65120923,43300.0,43293.0,0.00093382]
[1642264031080,0.65192199,43300.0,43293.0,0.00093382]
[1642264031879,0.65192199,43300.0,43293.0,6.876e-05]
[1642264032080,0.65120923,43300.0,43293.0,6.876e-05]
[1642264032284,0.65192199,43300.0,43293.0,0.00093382]
[1642264033130,0.65120923,43300.0,43293.0,6.876e-05]
[1642264033330,0.65189406,43300.0,43292.0,0.92261812]
[1642264033530,0.00010314,43299.0,43292.0,0.92261812]
[1642264033730,0.16999539,43299.0,43292.0,0.5917794]
[1642264033933,0.00123274,43294.0,43292.0,0.5917794]
[1642264034230,0.00600321,43293.0,43290.0,0.69064262]
[1642264034631,0.00600321,43293.0,43291.0,0.69064262]
[1642264035631,0.00600321,43293.0,43288.0,1.30237167]
[1642264036031,0.00600321,43293.0,43289.0,6.876e-05]
[1642264036479,8.595e-05,43298.0,43289.0,6.876e-05]
[1642264036679,8.595e-05,43298.0,43289.0,0.98802517]
[1642264036878,0.00046425,43296.0,43289.0,1.67866779]
[1642264037080,0.00046425,43296.0,43289.0,1.67836562]
[1642264037280,0.00010314,43295.0,43289.0,1.67836562]
[1642264037483,0.00010314,43295.0,43292.0,0.31709742]
[1642264037682,8.595e-05,43294.0,43292.0,0.31709742]
[1642264038081,6.876e-05,43293.0,43292.0,0.31709742]
[1642264038281,6.876e-05,43293.0,43291.0,0.0009346]
[1642264038482,6.876e-05,43293.0,43291.0,0.64687722]
[1642264039181,6.876e-05,43293.0,43288.0,0.61172905]
[1642264040736,6.876e-05,43293.0,43286.0,2.5559]
[1642264041934,6.876e-05,43293.0,43286.0,2.9988047]
[1642264042338,0.05782976,43293.0,43286.0,1.5651]
[1642264042537,0.00125454,43289.0,43287.0,0.0055]
[1642264043336,0.00125454,43289.0,43286.0,0.41193465]
[1642264043536,0.32022584,43289.0,43286.0,0.00093465]
[1642264043796,0.32022584,43289.0,43268.0,0.88796908]
[1642264043797,2.15,43285.0,43268.0,0.88796908]
[1642264043993,0.00121653,43269.0,43268.0,0.88796908]
[1642264044192,0.13525653,43269.0,43268.0,0.88796908]
[1642264044389,0.15644653,43269.0,43268.0,0.88796908]
[1642264044591,0.15144653,43269.0,43268.0,0.78466238]
[1642264044790,0.15273247,43269.0,43268.0,0.78466238]
[1642264045490,0.13532594,43269.0,43268.0,0.78466238]
[1642264045888,0.13532594,43269.0,43265.0,0.4493]
[1642264046290,0.13532594,43269.0,43266.0,0.00039538]
[1642264046691,0.00127419,43268.0,43266.0,0.00039538]
[1642264046890,0.00127419,43268.0,43265.0,0.4493]
[1642264046891,0.04757419,43268.0,43265.0,0.41469538]
[1642264047092,0.0463,43268.0,43265.0,0.41469538]
[1642264047293,0.0463,43268.0,43264.0,0.24720073]
[1642264047294,0.0463,43274.0,43264.0,0.24720073]
[1642264047735,0.00012033,43273.0,43267.0,0.00089178]
[1642264048137,0.00010314,43272.0,43267.0,0.00089178]
[1642264048336,0.00010314,43272.0,43255.0,0.473082]
[1642264048640,0.00010314,43272.0,43222.0,0.88592063]
[1642264048641,17.01230171,43240.0,43239.0,2.0212887]
[1642264048835,17.01230171,43240.0,43239.0,2.1344687]
[1642264049035,16.54506071,43240.0,43239.0,2.46325518]
[1642264049233,16.08281971,43240.0,43239.0,2.4587192]
[1642264049434,15.68425096,43240.0,43239.0,2.4587192]
[1642264049637,14.75976796,43240.0,43239.0,2.90213583]
[1642264049839,11.91029152,43240.0,43239.0,2.95991883]
[1642264050238,11.44800352,43240.0,43239.0,2.95991883]
[1642264050442,11.44800352,43240.0,43239.0,2.51592475]
[1642264050638,8.74473982,43240.0,43239.0,3.01592475]
[1642264050939,0.00124291,43249.0,43242.0,0.057781]
[1642264051189,0.057781,43277.0,43248.0,0.1]
[1642264051190,0.31715775,43273.0,43248.0,0.1]
[1642264051387,0.00048925,43262.0,43257.0,1.58189752]
[1642264051787,0.00048925,43262.0,43258.0,0.00013752]
[1642264052388,0.33382646,43264.0,43258.0,0.00013752]
[1642264052688,0.00093485,43262.0,43260.0,0.3448636]
[1642264053092,0.00093485,43262.0,43261.0,8.595e-05]
[1642264053488,0.32434438,43268.0,43257.0,1.53796688]
[1642264053688,0.20577497,43267.0,43257.0,1.53796688]
[1642264053889,0.20591249,43267.0,43257.0,1.53796688]
[1642264054089,0.00012033,43266.0,43257.0,1.53796688]
[1642264054393,0.00010314,43265.0,43260.0,0.39371111]
[1642264054590,0.00010314,43265.0,43261.0,0.0463]
[1642264054930,8.595e-05,43264.0,43261.0,0.0463]
[1642264055335,6.876e-05,43263.0,43261.0,0.0463]
[1642264055738,0.00049154,43265.0,43261.0,0.0463]
[1642264055739,8.595e-05,43264.0,43261.0,0.0463]
[1642264056031,6.876e-05,43263.0,43261.0,0.0463]
[1642264056431,0.00043673,43264.0,43261.0,0.0463]
[1642264056630,0.00043673,43264.0,43261.0,0.26869893]
[1642264056831,6.876e-05,43263.0,43261.0,0.26869893]
[1642264058133,6.876e-05,43263.0,43262.0,2.66624854]
[1642264058338,6.876e-05,43263.0,43262.0,2.71254854]
[1642264058538,6.876e-05,43263.0,43262.0,2.4963]
[1642264059789,6.876e-05,43263.0,43262.0,0.0463]
[1642264061092,6.876e-05,43263.0,43262.0,0.2720302]
[1642264061401,6.876e-05,43263.0,43262.0,2.8220302]
[1642264061590,6.876e-05,43263.0,43262.0,2.6963]
[1642264061790,6.876e-05,43263.0,43262.0,2.7963]
[1642264061990,6.876e-05,43263.0,43262.0,3.10072561]
[1642264062438,6.876e-05,43263.0,43262.0,4.32072561]
[1642264063639,6.876e-05,43263.0,43262.0,4.27492561]
[1642264064039,6.876e-05,43263.0,43262.0,4.17492561]
[1642264064239,6.876e-05,43263.0,43262.0,4.27492561]
[1642264064842,8.76e-06,43263.0,43262.0,4.27492561]
[1642264065042,0.00078383,43265.0,43262.0,4.85392561]
[1642264065241,0.00078383,43265.0,43264.0,4.349]
[1642264065440,0.00078383,43265.0,43264.0,4.453064]
[1642264065640,0.19102593,43279.0,43264.0,4.553064]
[1642264065842,0.00078385,43267.0,43266.0,2.279]
[1642264066044,0.00078385,43267.0,43266.0,0.6253]
[1642264066330,0.00078385,43267.0,43261.0,0.408236]
[1642264066531,0.00078385,43267.0,43261.0,0.2927]
[1642264066730,0.00122343,43273.0,43261.0,0.2927]
[1642264066934,0.00077094,43266.0,43261.0,0.2927]
[1642264067132,0.00077094,43266.0,43261.0,0.62574455]
[1642264067933,0.00015471,43272.0,43263.0,0.05777]
[1642264068231,0.00077093,43266.0,43263.0,0.05777]
[1642264068635,0.00077093,43266.0,43263.0,0.01317]
[1642264069233,0.00015471,43272.0,43263.0,0.01317]
[1642264069433,0.00015471,43272.0,43263.0,0.05947]
[1642264069434,0.00077094,43267.0,43263.0,0.05947]
[1642264070437,0.00013752,43271.0,43263.0,0.05947]
[1642264070634,0.00077095,43267.0,43263.0,0.05947]
[1642264071637,0.00012033,43270.0,43263.0,0.0463]
[1642264071835,0.00077513,43267.0,43263.0,0.0463]
[1642264072835,0.00010314,43269.0,43264.0,0.057769]
[1642264073036,0.00077513,43267.0,43264.0,0.057769]
[1642264073678,0.00077513,43267.0,43264.0,0.013169]
[1642264074078,0.00085972,43268.0,43263.0,0.2763]
[1642264074478,6.876e-05,43267.0,43263.0,0.2763]
[1642264075179,6.876e-05,43267.0,43264.0,0.057766]
[1642264075380,0.00084253,43267.0,43264.0,0.057766]
[1642264076385,6.876e-05,43267.0,43264.0,0.057766]
[1642264078432,6.876e-05,43267.0,43263.0,0.86828055]
[1642264078633,6.876e-05,43267.0,43263.0,0.82358055]
[1642264078936,0.00084297,43267.0,43263.0,0.82358055]
[1642264079133,0.00084297,43267.0,43263.0,0.2316]
[1642264079933,6.876e-05,43267.0,43263.0,0.2316]
[1642264080134,0.00084297,43267.0,43263.0,0.2316]
[1642264081184,6.876e-05,43267.0,43263.0,0.2316]
[1642264081380,0.00084283,43267.0,43263.0,0.2316]
[1642264082381,6.876e-05,43267.0,43263.0,0.2316]
[1642264082581,0.00084283,43267.0,43263.0,0.2316]
[1642264083483,6.876e-05,43267.0,43263.0,0.2316]
[1642264083682,0.00084283,43267.0,43263.0,0.187]
[1642264084784,6.876e-05,43267.0,43263.0,0.187]
[1642264085030,0.00084287,43267.0,43263.0,0.187]
[1642264085234,0.00084287,43267.0,43265.0,0.057767]
[1642264085729,0.00084287,43267.0,43266.0,2.5216986]
[1642264085932,6.876e-05,43267.0,43266.0,2.56956527]
[1642264086132,6.876e-05,43267.0,43266.0,2.72732477]
[1642264086931,6.876e-05,43267.0,43266.0,2.91980294]
[1642264087130,0.34298226,43277.0,43266.0,2.91980294]
[1642264087131,0.552,43278.0,43267.0,1.65]
[1642264087330,0.552,43278.0,43271.0,0.26711802]
[1642264087530,0.00015471,43276.0,43272.0,0.0463]
[1642264087830,0.552,43278.0,43272.0,0.0463]
[1642264087831,0.00013752,43275.0,43272.0,0.0463]
[1642264088231,0.00012033,43274.0,43272.0,0.0463]
[1642264088689,0.00010314,43273.0,43272.0,0.40657008]
[1642264088889,0.00010314,43273.0,43272.0,0.95306784]
[1642264089089,0.00010314,43273.0,43272.0,0.59279776]
[1642264089492,0.00010314,43273.0,43272.0,0.0003]
[1642264090191,0.00010314,43273.0,43272.0,0.59288446]
[1642264090390,0.00010314,43273.0,43272.0,0.97387751]
[1642264090890,0.00010314,43273.0,43272.0,0.38129305]
[1642264091292,0.00010314,43273.0,43272.0,0.38099305]
[1642264092090,0.00010314,43273.0,43272.0,0.42729305]
[1642264092532,0.00010314,43273.0,43272.0,0.65729305]
[1642264093532,0.00010314,43273.0,43272.0,0.42729305]
[1642264093731,0.00010314,43273.0,43272.0,0.38269305]
[1642264093933,0.00010314,43273.0,43272.0,1.03269305]
[1642264094131,0.00010314,43273.0,43272.0,1.13269305]
[1642264094932,0.00010314,43273.0,43272.0,3.02999555]
[1642264096385,0.601,43280.0,43273.0,1.4]
[1642264096586,0.601,43280.0,43274.0,0.31566203]
[1642264096784,0.601,43280.0,43275.0,0.0463]
[1642264096785,6.876e-05,43277.0,43275.0,0.0463]
[1642264097188,6.876e-05,43277.0,43275.0,1.03493634]
[1642264097585,6.876e-05,43277.0,43276.0,0.35808177]
[1642264097785,6.876e-05,43277.0,43276.0,0.40438177]
[1642264097987,6.876e-05,43277.0,43276.0,1.39301811]
[1642264098687,6.876e-05,43277.0,43276.0,0.40438177]
[1642264098886,6.876e-05,43277.0,43276.0,0.35968177]
[1642264099487,1.85,43276.0,43269.0,0.84642406]
[1642264099697,0.22030228,43275.0,43269.0,0.78867106]
[1642264099939,0.00128125,43272.0,43269.0,0.78867106]
[1642264100540,0.00128125,43272.0,43269.0,1.2272672]
[1642264100939,0.00128125,43272.0,43269.0,0.43859614]
[1642264101539,0.31942202,43272.0,43269.0,0.43859614]
[1642264102740,0.31942202,43272.0,43262.0,0.366172]
[1642264102941,0.51226295,43272.0,43267.0,0.00085368]
[1642264103140,0.51327545,43272.0,43267.0,0.00085368]
[1642264103341,0.31942202,43272.0,43267.0,0.00085368]
[1642264103786,0.31942202,43272.0,43261.0,0.74851174]
[1642264104184,0.00013752,43271.0,43260.0,0.74851174]
[1642264104382,0.00013752,43271.0,43266.0,0.39595692]
[1642264104584,0.00012033,43270.0,43266.0,0.39595692]
[1642264104988,0.00010314,43269.0,43266.0,0.39595692]
[1642264105383,8.595e-05,43268.0,43266.0,0.39595692]
[1642264105785,6.876e-05,43267.0,43266.0,0.39595692]
[1642264106184,0.00013752,43267.0,43266.0,0.39595692]
[1642264106786,0.00013752,43267.0,43262.0,0.057772]
[1642264107186,0.00013752,43267.0,43266.0,0.69149104]
[1642264108832,0.00013752,43267.0,43266.0,0.64659104]
[1642264110835,0.18956883,43271.0,43266.0,0.64659104]
[1642264111035,0.18956883,43271.0,43266.0,0.64667699]
[1642264111281,0.00128125,43272.0,43266.0,0.64667699]
[1642264111680,0.19666289,43272.0,43266.0,0.64667699]
[1642264111879,0.30261659,43271.0,43266.0,0.64667699]
[1642264112683,0.00123761,43268.0,43266.0,0.64167699]
[1642264113480,0.00123761,43268.0,43266.0,8.595e-05]
[1642264113880,0.30423786,43264.0,43257.0,1.76658677]
[1642264114082,0.57287927,43264.0,43260.0,0.42677484]
[1642264115630,0.26864141,43264.0,43260.0,0.42677484]
[1642264115830,0.00123761,43268.0,43261.0,0.23414958]
[1642264116034,0.2835,43270.0,43261.0,0.23414958]
[1642264116231,0.21605549,43273.0,43261.0,0.23414958]
[1642264116431,6.876e-05,43268.0,43261.0,0.23414958]
[1642264116931,6.876e-05,43268.0,43263.0,0.27551756]
[1642264117232,6.876e-05,43268.0,43260.0,0.42677484]
[1642264117432,6.876e-05,43268.0,43261.0,0.0004384]
[1642264117835,6.876e-05,43268.0,43267.0,0.35051894]
[1642264118885,6.876e-05,43268.0,43267.0,0.30591894]
[1642264124035,6.876e-05,43268.0,43267.0,0.26111894]
[1642264125335,0.00041238,43270.0,43267.0,0.26111894]
[1642264125537,0.30440574,43272.0,43267.0,0.26111894]
[1642264126184,0.00125514,43273.0,43267.0,0.26111894]
[1642264126382,0.20529977,43276.0,43267.0,0.26111894]
[1642264126583,6.876e-05,43272.0,43264.0,0.69144461]
[1642264126984,0.00056725,43272.0,43264.0,0.69144461]
[1642264127184,0.24410326,43270.0,43264.0,0.69144461]
[1642264127685,0.00056725,43272.0,43268.0,0.35892955]
[1642264128082,6.876e-05,43272.0,43268.0,0.35892955]
[1642264128284,0.00056727,43272.0,43268.0,0.35892955]
[1642264128985,0.00056727,43272.0,43268.0,0.31392955]
[1642264129285,6.876e-05,43272.0,43268.0,0.31392955]
[1642264129484,0.00100351,43272.0,43268.0,0.31392955]
[1642264130433,6.876e-05,43272.0,43268.0,0.31392955]
[1642264130634,0.00100351,43272.0,43268.0,0.31392955]
[1642264131038,0.00100351,43272.0,43271.0,0.25431342]
[1642264131435,0.00100351,43272.0,43271.0,0.70431342]
[1642264131636,6.876e-05,43272.0,43271.0,0.70431342]
[1642264131836,6.876e-05,43272.0,43268.0,0.90654023]
[1642264132840,0.70151025,43269.0,43268.0,0.59261068]
[1642264133037,0.25151025,43269.0,43268.0,0.59261068]
[1642264133239,0.00124445,43270.0,43269.0,0.59261068]
[1642264134086,0.00124445,43270.0,43267.0,0.69144461]
[1642264134087,0.32168462,43267.0,43266.0,0.40293341]
[1642264136688,0.32168462,43267.0,43264.0,0.0008194]
[1642264137293,0.53835116,43267.0,43264.0,0.0008194]
[1642264137548,0.00122295,43265.0,43259.0,0.69144461]
[1642264137739,0.00122295,43265.0,43263.0,0.00081943]
[1642264138141,0.00122295,43265.0,43264.0,6.876e-05]
[1642264139241,0.00122295,43265.0,43258.0,0.35511865]
[1642264139641,0.00122295,43265.0,43259.0,8.595e-05]
[1642264139843,2.57903886,43268.0,43259.0,8.595e-05]
[1642264140043,6.876e-05,43272.0,43259.0,8.595e-05]
[1642264140242,0.20934701,43272.0,43258.0,0.35511865]
[1642264140441,0.00020628,43271.0,43258.0,0.35511865]
[1642264140843,0.25469137,43264.0,43258.0,0.35511865]
[1642264141041,0.25469137,43264.0,43258.0,1.04656326]
[1642264141285,6.876e-05,43263.0,43258.0,1.04656326]
[1642264141491,6.876e-05,43263.0,43259.0,0.00043767]
[1642264141886,0.25430287,43264.0,43259.0,0.00043767]
[1642264142486,0.25079673,43265.0,43258.0,0.35511865]
[1642264142687,0.25079673,43265.0,43259.0,0.00081189]
[1642264142885,0.00093477,43267.0,43259.0,0.00088065]
[1642264143288,0.00093477,43267.0,43259.0,0.59356147]
[1642264143488,0.00093477,43267.0,43266.0,0.32437095]
[1642264143687,0.9258,43271.0,43266.0,0.32437095]
[1642264143888,0.00100354,43267.0,43266.0,0.32437095]
[1642264144191,0.00100354,43267.0,43266.0,0.27977095]
[1642264144788,6.876e-05,43267.0,43266.0,0.27977095]
[1642264147234,6.876e-05,43267.0,43266.0,2.02977095]
[1642264147636,6.876e-05,43267.0,43266.0,0.27977095]
[1642264147837,6.876e-05,43267.0,43266.0,0.87245177]
[1642264148684,6.876e-05,43267.0,43266.0,0.27977095]
[1642264148886,6.876e-05,43267.0,43266.0,1.39305612]
[1642264149085,6.876e-05,43267.0,43266.0,1.34835612]
[1642264149491,6.876e-05,43267.0,43266.0,0.23507095]
[1642264149687,0.00125419,43273.0,43267.0,2.5]
[1642264149892,0.00093478,43269.0,43268.0,2.75661605]
[1642264150092,0.00093478,43269.0,43268.0,3.22651735]
[1642264150289,0.00093478,43269.0,43268.0,4.44651735]
[1642264150690,0.00093478,43269.0,43268.0,4.7405371]
[1642264150892,6.876e-05,43271.0,43268.0,4.8405371]
[1642264151091,0.00100352,43271.0,43269.0,0.579]
[1642264151394,0.533,43278.0,43274.0,0.46217436]
[1642264151591,0.533,43278.0,43275.0,0.0463]
[1642264151793,0.00010314,43277.0,43275.0,0.0463]
[1642264152097,0.533,43278.0,43275.0,0.0463]
[1642264152098,0.533,43278.0,43276.0,0.71038117]
[1642264152440,0.533,43278.0,43277.0,0.63897573]
[1642264152841,0.53312033,43278.0,43277.0,0.63897573]
[1642264153541,0.53312033,43278.0,43277.0,0.0463]
[1642264154141,0.53312033,43278.0,43277.0,0.7515]
[1642264154340,0.53312033,43278.0,43277.0,0.0015]
[1642264156184,0.53312033,43278.0,43277.0,0.9015]
[1642264156884,0.52812033,43278.0,43277.0,0.0015]
[1642264157287,0.00012033,43278.0,43277.0,0.0015]
[1642264158083,0.00012033,43278.0,43277.0,0.059248]
[1642264158284,0.00012033,43278.0,43277.0,0.0015]
[1642264159087,0.00012033,43278.0,43276.0,0.072197]
[1642264159286,0.00012033,43278.0,43276.0,0.118497]
[1642264159489,0.00010314,43277.0,43276.0,0.118497]
[1642264160145,0.00010314,43277.0,43276.0,4.05646112]
[1642264160341,0.601,43280.0,43277.0,2.45]
[1642264160540,0.00093468,43279.0,43278.0,0.0463]
[1642264161137,0.00093468,43279.0,43278.0,2.07209229]
[1642264161541,0.929,43280.0,43278.0,1.69209229]
[1642264161739,0.929,43280.0,43279.0,0.057743]
[1642264161937,0.929,43280.0,43279.0,0.104043]
[1642264162543,0.929,43280.0,43279.0,0.30993249]
[1642264162942,0.929,43280.0,43279.0,0.104043]
[1642264164084,0.929,43280.0,43279.0,0.459143]
[1642264164584,0.929,43280.0,43279.0,0.76909328]
[1642264164984,0.929,43280.0,43279.0,1.7070576]
[1642264165388,0.929,43280.0,43279.0,0.90172964]
[1642264165686,0.929,43280.0,43279.0,0.82920813]
[1642264165887,0.929,43280.0,43279.0,2.05045643]
[1642264166085,0.929,43280.0,43279.0,3.21575643]
[1642264166787,0.929,43280.0,43279.0,1.45662273]
[1642264166987,0.929,43280.0,43279.0,0.389143]
[1642264167186,0.929,43280.0,43279.0,0.289143]
[1642264168033,0.929,43280.0,43279.0,1.139143]
[1642264168433,0.929,43280.0,43279.0,1.239143]
[1642264168734,0.929,43280.0,43279.0,2.459143]
[1642264169134,0.929,43280.0,43279.0,2.414543]
[1642264169336,0.929,43280.0,43279.0,1.194543]
[1642264170535,0.929,43280.0,43279.0,2.414543]
[1642264170936,0.929,43280.0,43279.0,2.472286]
[1642264171983,0.929,43280.0,43279.0,1.622286]
[1642264174183,0.929,43280.0,43279.0,1.577686]
[1642264174584,0.909,43280.0,43279.0,1.577686]
[1642264174938,0.328,43280.0,43279.0,1.577686]
[1642264175139,0.328,43280.0,43279.0,1.623986]
[1642264177743,0.00093465,43282.0,43281.0,1.66416641]
[1642264177944,0.00093465,43282.0,43281.0,1.71046641]
[1642264178149,0.00093465,43282.0,43281.0,1.81046641]
[1642264178347,1.18079453,43295.0,43281.0,1.81046641]
[1642264178548,0.00093463,43284.0,43281.0,1.71046641]
[1642264178787,0.00093463,43284.0,43281.0,1.86820505]
[1642264179189,0.00093463,43284.0,43281.0,1.82360505]
[1642264179590,0.00017191,43287.0,43281.0,1.82360505]
[1642264179792,0.00093462,43285.0,43284.0,0.92333832]
[1642264179990,0.00093462,43285.0,43284.0,0.96963832]
[1642264180192,0.00107215,43285.0,43284.0,0.0463]
[1642264180795,0.00013753,43285.0,43284.0,0.0463]
[1642264181292,0.00013753,43285.0,43281.0,0.115477]
[1642264181492,0.30870388,43284.0,43281.0,0.161777]
[1642264181692,0.00012033,43284.0,43281.0,0.161777]
[1642264181893,0.00010314,43283.0,43281.0,0.161777]
[1642264182292,8.595e-05,43282.0,43281.0,0.161777]
[1642264182744,0.00013753,43282.0,43281.0,0.161777]
[1642264183940,0.00013753,43282.0,43281.0,1.161777]
[1642264184141,0.00013753,43282.0,43281.0,1.116777]
[1642264184743,0.00013753,43282.0,43281.0,0.566777]
[1642264185141,0.00013753,43282.0,43281.0,0.116777]
[1642264186601,0.00013753,43282.0,43279.0,0.199943]
[1642264187001,6.876e-05,43281.0,43279.0,0.199943]
[1642264187401,0.00093464,43283.0,43279.0,0.199943]
[1642264187801,8.595e-05,43282.0,43279.0,0.199943]
[1642264188203,6.876e-05,43281.0,43279.0,0.199943]
[1642264188708,0.00093464,43283.0,43279.0,0.199943]
[1642264189103,8.595e-05,43282.0,43279.0,0.199943]
[1642264189303,8.595e-05,43282.0,43279.0,0.155243]
[1642264189503,6.876e-05,43281.0,43279.0,0.155243]
[1642264189945,0.00093463,43283.0,43279.0,0.155243]
[1642264190345,8.595e-05,43282.0,43279.0,0.155243]
[1642264190546,8.595e-05,43282.0,43279.0,0.74791873]
[1642264190746,6.876e-05,43281.0,43279.0,0.74791873]
[1642264191148,0.00093463,43283.0,43279.0,0.74791873]
[1642264191149,8.595e-05,43282.0,43279.0,0.74791873]
[1642264191548,6.876e-05,43281.0,43279.0,0.84791873]
[1642264191749,6.876e-05,43281.0,43280.0,1.34267573]
[1642264191948,0.00093464,43283.0,43280.0,0.59267573]
[1642264192149,6.876e-05,43281.0,43280.0,0.59267573]
[1642264192348,8.595e-05,43282.0,43280.0,0.59267573]
[1642264192551,6.876e-05,43281.0,43280.0,0.65042046]
[1642264192750,6.876e-05,43281.0,43280.0,1.80816346]
[1642264192950,8.595e-05,43281.0,43280.0,1.21548773]
[1642264193152,8.595e-05,43281.0,43280.0,2.62284854]
[1642264193352,8.595e-05,43281.0,43280.0,2.66914854]
[1642264193551,8.595e-05,43281.0,43280.0,3.98914854]
[1642264193991,8.595e-05,43281.0,43280.0,3.88914854]
[1642264194289,8.595e-05,43281.0,43280.0,3.25189352]
[1642264195392,0.00093464,43283.0,43281.0,2.5]
[1642264195589,0.00093464,43283.0,43282.0,3.1253]
[1642264195792,0.00093464,43283.0,43282.0,4.3453]
[1642264195988,0.00093464,43283.0,43282.0,4.78628123]
[1642264196391,0.581,43286.0,43283.0,0.43195618]
[1642264196593,0.581,43286.0,43285.0,1.777732]
[1642264196790,0.581,43286.0,43285.0,1.324032]
[1642264196988,0.57606877,43286.0,43285.0,1.424032]
[1642264198238,0.57606877,43286.0,43285.0,2.13993779]
[1642264199038,0.57606877,43286.0,43285.0,2.63993779]
[1642264199439,0.57606877,43286.0,43285.0,2.59513779]
[1642264200339,0.57606877,43286.0,43285.0,2.69513779]
[1642264200538,0.57606877,43286.0,43285.0,2.23993779]
[1642264201389,0.51565964,43286.0,43285.0,2.23993779]
[1642264201587,0.00093459,43288.0,43287.0,1.66245748]
[1642264201791,0.00093459,43288.0,43287.0,2.92875748]
[1642264201987,0.00093459,43288.0,43287.0,3.02875748]
[1642264202488,0.0005336,43295.0,43289.0,0.057729]
[1642264202690,0.00093457,43290.0,43289.0,1.61233782]
[1642264202889,0.00093457,43290.0,43289.0,1.65863782]
[1642264203191,0.00012033,43293.0,43291.0,1.22]
[1642264203389,0.00012033,43293.0,43292.0,0.6253]
[1642264203587,0.0005336,43295.0,43293.0,0.05773]
[1642264203788,0.0005336,43295.0,43294.0,0.0463]
[1642264204393,0.0005336,43295.0,43294.0,0.0014]
[1642264204688,0.0005336,43295.0,43294.0,1.3014]
[1642264205535,0.0005336,43295.0,43294.0,1.4014]
[1642264205935,0.0005336,43295.0,43294.0,1.74683892]
[1642264206136,0.0005336,43295.0,43294.0,1.6314]
[1642264206738,0.0005336,43295.0,43294.0,0.3314]
[1642264208137,0.0005336,43295.0,43294.0,0.4314]
[1642264209388,0.01026196,43295.0,43294.0,0.3867]
[1642264209595,0.01999032,43295.0,43294.0,0.3867]
[1642264211193,0.01999032,43295.0,43294.0,0.4867]
[1642264212097,0.00999032,43295.0,43294.0,0.533]
[1642264214137,0.00999032,43295.0,43294.0,0.633]
[1642264214538,0.00972836,43295.0,43294.0,0.588]
[1642264214741,0.00972836,43295.0,43294.0,0.56669173]
[1642264214936,0.00972836,43295.0,43294.0,0.54722173]
[1642264215538,0.00972836,43295.0,43294.0,1.04722173]
[1642264215737,0.00972836,43295.0,43294.0,0.54722173]
[1642264218293,0.00972836,43295.0,43294.0,0.50092173]
[1642264218492,0.00972836,43295.0,43294.0,1.15092173]
[1642264218693,0.00972836,43295.0,43294.0,0.50092173]
[1642264219492,0.00972836,43295.0,43294.0,0.45582173]
[1642264220349,0.00972836,43295.0,43294.0,0.51354573]
[1642264220952,0.00972836,43295.0,43294.0,0.61354573]
[1642264221952,0.00972836,43295.0,43294.0,0.55582173]
[1642264222251,0.00972836,43295.0,43294.0,0.45582173]
[1642264223453,0.00972836,43295.0,43294.0,1.93498041]
[1642264223691,0.00972836,43295.0,43294.0,0.50212173]
[1642264223892,0.00972836,43295.0,43294.0,0.55984473]
[1642264224093,0.00972836,43295.0,43294.0,0.65984473]
[1642264224293,0.00972836,43295.0,43294.0,0.55984473]
[1642264224493,0.00972836,43295.0,43294.0,0.45752173]
[1642264227298,0.00972836,43295.0,43294.0,0.63069111]
[1642264228540,0.00972836,43295.0,43294.0,0.73069111]
[1642264228740,0.00972836,43295.0,43294.0,0.63069111]
[1642264229542,0.00972836,43295.0,43294.0,0.58599111]
[1642264230140,0.00972836,43295.0,43294.0,0.57296673]
[1642264230343,0.00972836,43295.0,43294.0,0.45752173]
[1642264230542,0.00972836,43295.0,43294.0,0.55752173]
[1642264231819,0.00972836,43295.0,43294.0,0.57296523]
[1642264232020,0.00972836,43295.0,43294.0,0.67296523]